[Event "48th Ciutat de Badalona Open 2024"]
[Site "Badalona"]
[Date "2024.08.10"]
[Round "9.4"]
[White "Nagare Kaivalya Sandip"]
[Black "Vaibhav Jayant Raut"]
[Result "1/2-1/2"]
[ECO "B42"]
[WhiteElo "2273"]
[BlackElo "2101"]
[Annotator "RC"]
[PlyCount "123"]
[EventDate "2024.07.29"]
[EventType "swiss"]
[EventCountry "ESP"]
[SourceTitle "playchess.com"]
[Source "ChessBase"]
[SourceQuality "1"]
[TimeControl "5400+30"]

1. e4 {[%emt 0:01:04]} c5 {[%emt 0:00:24]} 2. Nf3 {[%emt 0:00:07]} e6 {[%emt 0:00:12]} 3. d4 {[%emt 0:00:21]} cxd4 {[%emt 0:00:10]} 4. Nxd4 {[%emt 0:00:04]} a6 {[%emt 0:00:05]} 5. Bd3 {[%emt 0:00:06]} Ne7 {[%emt 0:00:13]} 6. O-O {[%emt 0:00:13]} Nbc6 {[%emt 0:00:22]} 7. c3 {[%emt 0:00:04]} g6 {[%emt 0:00:15]} 8. Bf4 {[%emt 0:08:00]} d6 {[%emt 0:09:21]} 9. Nd2 {[%emt 0:04:31]} Bg7 {[%emt 0:00:21]} 10. Nc4 {[%emt 0:00:43]} Ne5 {[%emt 0:16:51]} 11. Nf3 {[%emt 0:01:47]} N7c6 {[%emt 0:04:39]} 12. Be2 {[%emt 0:03:22]} Nxc4 {[%emt 0:02:31]} 13. Bxc4 {[%emt 1:16:38]} Ne5 {[%emt 0:00:11]} 14. Be2 {[%emt 0:00:00]} O-O {[%emt 0:17:33]} 15. Qd2 {[%emt 0:00:00]} Nxf3+ {[%emt 0:02:14]} 16. Bxf3 {[%emt 0:00:00]} e5 {[%emt 0:00:52]} 17. Bg5 {[%emt 0:00:00]} f6 {[%emt 0:06:35]} 18. Qd5+ {[%emt 0:00:00]} Rf7 {[%emt 0:01:09]} 19. Be3 {[%emt 0:00:00]} Qe7 {[%emt 0:02:31]} 20. Rfd1 {[%emt 0:00:00]} Bf8 {[%emt 0:00:04]} 21. Be2 {[%emt 0:00:00]} Be6 {[%emt 0:00:16]} 22. Qd2 {[%emt 0:00:00]} b5 {[%emt 0:01:09]} 23. a4 {[%emt 0:00:00]} Qb7 {[%emt 0:02:08]} 24. axb5 {[%emt 0:00:00]} axb5 {[%emt 0:00:03]} 25. Rxa8 {[%emt 0:00:00]} Qxa8 {[%emt 0:00:02]} 26. Bxb5 {[%emt 0:00:00]} Qxe4 {[%emt 0:00:21]} 27. b4 {[%emt 0:00:00]} f5 {[%emt 0:02:36]} 28. f3 {[%emt 0:00:00]} Qb7 {[%emt 0:00:40]} 29. c4 {[%emt 0:00:00]} f4 {[%emt 0:04:11]} 30. Bf2 {[%emt 0:00:00]} g5 {[%emt 0:00:37]} 31. Ra1 {[%emt 0:00:00]} g4 {[%emt 0:05:00]} 32. Ra7 {[%emt 0:00:00]} Qc8 {[%emt 0:00:04]} 33. Rxf7 {[%emt 0:00:00]} Bxf7 {[%emt 0:00:11]} 34. Qe2 {[%emt 0:00:00]} Qa8 {[%emt 0:01:07]} 35. c5 {[%emt 0:00:00]} Qa1+ {[%emt 0:04:10]} 36. Qf1 {[%emt 0:00:00]} Qc3 {[%emt 0:00:16]} 37. c6 {[%emt 0:00:00]} gxf3 {[%emt 0:05:54]} 38. gxf3 {[%emt 0:00:00]} Bd5 {[%emt 0:00:11]} 39. Qh3 {[%emt 0:00:00]} e4 {[%emt 0:13:54]} 40. Qg4+ {[%emt 0:00:00]} Bg7 {[%emt 0:00:09]} 41. fxe4 {[%emt 0:00:00]} Qc1+ {[%emt 0:00:16]} 42. Bf1 {[%emt 0:00:00]} Bc4 {[%emt 0:00:15]} 43. Qh3 {[%emt 0:00:00]} Bxf1 {[%emt 0:00:20]} 44. Qxf1 {[%emt 0:00:00]} Qxc6 {[%emt 0:00:14]} 45. Qd3 {[%emt 0:00:00]} Qc1+ {[%emt 0:01:04]} 46. Kg2 {[%emt 0:00:00]} Be5 {[%emt 0:00:13]} 47. b5 {[%emt 0:00:00]} Qc8 {[%emt 0:01:04]} 48. b6 {[%emt 0:00:00]} Kg7 {[%emt 0:00:59]} 49. h3 {[%emt 0:00:00]} Qc6 {[%emt 0:00:29]} 50. Qd5 {[%emt 0:00:00]} Qc3 {[%emt 0:00:11]} 51. Qd1 {[%emt 0:00:00]} Qc6 {[%emt 0:00:52]} 52. Qd3 {[%emt 0:00:00]} h5 {[%emt 0:00:27]} 53. Qd5 {[%emt 0:00:00]} Qc3 {[%emt 0:00:05]} 54. Qd1 {[%emt 0:00:00]} Qc6 {[%emt 0:00:54]} 55. Qxh5 {[%emt 0:00:00]} Qxe4+ {[%emt 0:00:09]} 56. Qf3 {[%emt 0:00:00]} d5 {[%emt 0:00:38]} 57. b7 {[%emt 0:00:00]} Bb8 {[%emt 0:00:46]} 58. h4 {[%emt 0:00:00]} Kh6 {[%emt 0:00:22]} 59. Bg1 {[%emt 0:00:00]} Qc2+ {[%emt 0:00:36]} 60. Bf2 {[%emt 0:00:00]} Qe4 {[%emt 0:00:12]} 61. Bc5 {[%emt 0:00:00]} Qc2+ {[%emt 0:00:06]} 62. Bf2 {[%emt 0:00:00]} 1/2-1/2

[Event "48th Ciutat de Badalona Open 2024"]
[Site "Badalona"]
[Date "2024.08.10"]
[Round "9.5"]
[White "Diaz Perez, Michel Alejandro"]
[Black "Perpinya Rofes, Lluis Maria"]
[Result "1-0"]
[ECO "B33"]
[WhiteElo "2487"]
[BlackElo "2189"]
[Annotator "TA"]
[PlyCount "101"]
[EventDate "2024.07.29"]
[EventType "swiss"]
[EventCountry "ESP"]
[SourceTitle "playchess.com"]
[Source "ChessBase"]
[SourceQuality "1"]
[TimeControl "5400+30"]

{[%evp 17,101,43,48,50,63,41,43,17,30,21,17,20,23,13,22,22,35,33,37,38,31,35,27,31,46,27,38,39,38,33,24,37,29,27,43,33,47,35,35,0,0,0,0,0,0,0,0,0,0,0,0,0,0,0,0,0,0,0,22,10,11,8,13,0,0,0,0,0,0,-8,105,107,106,105,158,162,225,182,252,249,350,350,350,344,331,272]} 1. e4 {[%emt 0:00:28]} c5 {[%emt 0:00:08]} 2. Nf3 {[%emt 0:00:03][%cal Bg1f3,Bf3d4,Bd4b5,Bb5a3,Ba3c4][%mdl 32]} Nc6 {[%emt 0:00:06]} 3. d4 {[%emt 0:00:08]} cxd4 {[%emt 0:00:07]} 4. Nxd4 {[%emt 0:00:03]} Nf6 {[%emt 0:00:25]} 5. Nc3 {[%emt 0:00:03]} e6 {[%emt 0:00:06][%cal Be7e6,Be6e5][%mdl 32]} 6. Ndb5 {[%emt 0:00:09]} d6 {[%emt 0:00:50]} 7. Bf4 {[%emt 0:00:38]} e5 {[%emt 0:00:35]} 8. Bg5 {[%emt 0:00:03]} a6 {[%emt 0:00:16]} 9. Na3 {[%emt 0:00:03]} Be6 {[%emt 0:00:08]} 10. Nc4 {[%emt 0:02:56]} Rb8 {[%emt 0:00:37]} 11. Be2 {[%emt 0:04:37] White is more active.} Nd4 {[%emt 0:14:49]} 12. O-O {[%emt 0:05:12] White is slightly better.} Be7 {[%emt 0:00:34]} 13. Bxf6 {[%emt 0:03:10]} Bxf6 {[%emt 0:00:07]} 14. Ne3 {[%emt 0:00:13]} O-O {[%emt 0:09:47]} 15. Ncd5 {[%emt 0:02:51]} Bg5 {[%emt 0:00:12]} 16. c3 {[%emt 0:01:11]} Bxe3 {[%emt 0:06:00]} 17. Nxe3 {[%emt 0:00:02]} Nxe2+ {[%emt 0:04:15]} 18. Qxe2 {[%emt 0:00:02]} b5 {[%emt 0:00:44]} 19. Rfd1 {[%emt 0:02:14]} Qb6 {[%emt 0:01:59]} 20. Rd2 {[%emt 0:06:34]} Rbd8 {[%emt 0:05:16]} 21. h4 {[%emt 0:01:57]} Qc6 {[%emt 0:22:31]} 22. Qf3 {[%emt 0:07:30]} f5 {[%emt 0:16:30]} 23. exf5 {[%emt 0:06:03]} Qxf3 {[%emt 0:00:07]} 24. gxf3 {[%emt 0:00:03]} Bxf5 {[%emt 0:00:16]} 25. Rad1 {[%emt 0:00:01]} Bc8 $1 {[%emt 0:01:02]} 26. Rxd6 {[%emt 0:06:09]} Rxd6 {[%emt 0:00:10]} 27. Rxd6 {[%emt 0:00:03]} Rxf3 $14 {[%emt 0:00:59][%mdl 4096] Endgame. KRB-KRN} 28. Nd5 {[%emt 0:05:57]} Kf7 {[%emt 0:01:48] Inhibits Ne7.} 29. Rc6 {[%emt 0:05:16]} Be6 {[%emt 0:05:48]} 30. Ne3 {[%emt 0:01:13]} Bxa2 {[%emt 0:03:17]} 31. Rxa6 {[%emt 0:00:03]} Bc4 {[%emt 0:00:32]} 32. Rc6 {[%emt 0:02:35]} Rf4 {[%emt 0:01:25]} 33. h5 {[%emt 0:00:27]} Be2 {[%emt 0:05:34]} 34. Rc7+ {[%emt 0:04:39]} Kf8 {[%emt 0:00:00]} 35. Rc5 {[%emt 0:03:22]} Rh4 {[%emt 0:00:00]} 36. Rxe5 {[%emt 0:08:33] Hoping for Ng2.} Rxh5 {[%emt 0:00:00]} 37. Re4 {[%emt 0:00:58]} g5 {[%emt 0:00:18] ...Bf3 would now be deadly.} 38. Re5 {[%emt 0:00:55][%cal Of2f3]} Kg7 {[%emt 0:01:26]} 39. Kg2 {[%emt 0:04:25]} Kf6 {[%emt 0:00:19]} 40. Rc5 {[%emt 0:01:06]} Rh4 {[%emt 0:00:36]} 41. f3 {[%emt 0:00:49]} h5 {[%emt 0:00:37]} 42. Rc6+ {[%emt 0:03:06]} Ke5 {[%emt 0:00:34]} 43. Kg3 {[%emt 0:05:12]} Bc4 {[%emt 0:00:20]} (43... Rf4 $11 44. Rc5+ Kd6) 44. Rg6 $16 {[%emt 0:01:07]} Rh1 {[%emt 0:00:30]} 45. Rxg5+ {[%emt 0:00:04]} Kf6 {[%emt 0:00:21] [#]} (45... Kd6 $142) 46. Rc5 $1 {[%emt 0:00:03]} Rg1+ {[%emt 0:00:36]} (46... Bd3 {is a better defense.} 47. Nd5+ Kf7) 47. Kf4 {[%emt 0:00:20]} h4 {[%emt 0:00:22] [#]} (47... Rh1 $142 48. Nxc4 bxc4) 48. Rh5 $1 $18 {[%emt 0:01:41]} ({Don't do} 48. Nxc4 bxc4 49. Rh5 (49. Rxc4 h3 $11) 49... Rh1) 48... Rh1 {[%emt 0:00:31]} (48... Be6 {might work better.} 49. Rxh4 Re1 50. Rh6+ Kf7 51. Rh7+ Kf6) 49. Nxc4 {[%emt 0:01:50] White has a decisive advantage.} bxc4 {[%emt 0:00:06]} 50. Kg4 {[%emt 0:00:04]} Rh2 {[%emt 0:01:15]} 51. Rxh4 {[%emt 0:00:49] Weighted Error Value: White=0.05 (flawless) /Black=0.14 (very precise) .  Mistake:       	---       	Black=5      Inaccurate:     	White=2     	---        OK:         	White=18    	Black=21     Best:        	White=4     	Black=3      Strong:       	White=1     	Black=1} 1-0

[Event "48th Ciutat de Badalona Open 2024"]
[Site "Badalona"]
[Date "2024.08.10"]
[Round "9.6"]
[White "Iglesias Romero, Jorge"]
[Black "Huh, Isaak"]
[Result "1-0"]
[ECO "B51"]
[WhiteElo "2271"]
[BlackElo "2082"]
[Annotator "RC"]
[PlyCount "110"]
[EventDate "2024.07.29"]
[EventType "swiss"]
[EventCountry "ESP"]
[SourceTitle "playchess.com"]
[Source "ChessBase"]
[SourceQuality "1"]
[TimeControl "5400+30"]

1. e4 {[%emt 0:02:04]} c5 {[%emt 0:01:06]} 2. Nf3 {[%emt 0:00:14]} d6 {[%emt 0:00:03]} 3. Bb5+ {[%emt 0:00:49]} Nd7 {[%emt 0:00:06]} 4. Ba4 {[%emt 0:00:31]} Ngf6 {[%emt 0:01:07]} 5. O-O {[%emt 0:02:06]} e6 {[%emt 0:01:45]} 6. Re1 {[%emt 0:01:25]} Be7 {[%emt 0:02:41]} 7. c3 {[%emt 0:01:23]} O-O {[%emt 0:08:36]} 8. d4 {[%emt 0:00:18]} cxd4 {[%emt 1:19:06]} 9. cxd4 {[%emt 0:00:07]} a6 {[%emt 0:00:00]} 10. Bc2 {[%emt 0:02:21]} b5 {[%emt 0:00:00]} 11. Qd3 {[%emt 0:10:29]} e5 {[%emt 0:00:00]} 12. Nc3 {[%emt 0:04:48]} Bb7 {[%emt 0:00:00]} 13. a3 {[%emt 0:00:31]} Rc8 {[%emt 0:00:00]} 14. Bg5 {[%emt 0:02:27]} g6 {[%emt 0:00:00]} 15. Bh6 {[%emt 0:08:27]} Re8 {[%emt 0:00:00]} 16. Rad1 {[%emt 0:00:39]} Ng4 {[%emt 0:00:00]} 17. Bc1 {[%emt 0:05:22]} exd4 {[%emt 0:00:00]} 18. Nxd4 {[%emt 0:00:14]} Bf6 {[%emt 0:00:00]} 19. h3 {[%emt 0:32:11]} Nge5 {[%emt 0:00:00]} 20. Qg3 {[%emt 0:01:29]} Bg7 {[%emt 0:00:00]} 21. Bg5 {[%emt 0:06:50]} Qb6 {[%emt 0:00:00]} 22. Nf5 {[%emt 0:01:34]} gxf5 {[%emt 0:00:00]} 23. Bh6 {[%emt 0:00:08]} Ng6 {[%emt 0:00:00]} 24. Bxg7 {[%emt 0:00:34]} f4 {[%emt 0:00:00]} 25. Qg4 {[%emt 0:01:47]} Nde5 {[%emt 0:01:31]} 26. Bxe5 {[%emt 0:00:14]} dxe5 {[%emt 0:00:07]} 27. Bb3 {[%emt 0:00:48]} Kg7 {[%emt 0:05:18]} 28. Rd7 {[%emt 0:00:55]} Rc7 {[%emt 0:00:32]} 29. Bxf7 {[%emt 0:05:01]} Rxd7 {[%emt 0:01:22]} 30. Bxg6 {[%emt 0:00:21]} Qxg6 {[%emt 0:01:30]} 31. Qxd7+ {[%emt 0:00:14]} Kh8 {[%emt 0:00:02]} 32. f3 {[%emt 0:03:28]} Rg8 {[%emt 0:00:14]} 33. Re2 {[%emt 0:00:17]} Bc8 {[%emt 0:00:06]} 34. Qe7 {[%emt 0:00:51]} Re8 {[%emt 0:01:25]} 35. Qh4 {[%emt 0:00:17]} Be6 {[%emt 0:00:45]} 36. Rd2 {[%emt 0:03:05]} Bc8 {[%emt 0:00:35]} 37. Kh1 {[%emt 0:00:26]} Be6 {[%emt 0:00:32]} 38. Rd8 {[%emt 0:00:40]} Rxd8 {[%emt 0:01:01]} 39. Qxd8+ {[%emt 0:00:02]} Bg8 {[%emt 0:00:00]} 40. Nd5 {[%emt 0:00:24]} Qg3 {[%emt 0:00:00]} 41. Qf6+ {[%emt 0:00:52]} Qg7 {[%emt 0:00:00]} 42. Qxg7+ {[%emt 0:00:30]} Kxg7 {[%emt 0:02:00]} 43. Nc7 {[%emt 0:00:04]} Kf6 {[%emt 0:00:00]} 44. Nxa6 {[%emt 0:00:09]} Ke6 {[%emt 0:00:00]} 45. Nc5+ {[%emt 0:02:16]} Kd6 {[%emt 0:00:00]} 46. b4 {[%emt 0:00:06]} h5 {[%emt 0:00:00]} 47. h4 {[%emt 0:00:11]} Bc4 {[%emt 0:00:00]} 48. Kg1 {[%emt 0:00:25]} Be2 {[%emt 0:00:00]} 49. Kf2 {[%emt 0:00:07]} Bd1 {[%emt 0:00:00]} 50. Nd3 {[%emt 0:01:07]} Bc2 {[%emt 0:00:00]} 51. Nc1 {[%emt 0:00:12]} Bd1 {[%emt 0:00:13]} 52. g3 {[%emt 0:01:20]} fxg3+ {[%emt 0:00:17]} 53. Kxg3 {[%emt 0:00:06]} Bc2 {[%emt 0:00:05]} 54. Kf2 {[%emt 0:00:16]} Bd1 {[%emt 0:00:05]} 55. Ke3 {[%emt 0:04:28]} Ke6 {[%emt 0:05:50]} 1-0

[Event "48th Ciutat de Badalona Open 2024"]
[Site "Badalona"]
[Date "2024.08.10"]
[Round "9.7"]
[White "Boggarapu, Kritan"]
[Black "Pimpalkhare Vedant"]
[Result "0-1"]
[ECO "C11"]
[WhiteElo "1971"]
[BlackElo "2191"]
[Annotator "RC"]
[PlyCount "100"]
[EventDate "2024.07.29"]
[EventType "swiss"]
[EventCountry "ESP"]
[SourceTitle "playchess.com"]
[Source "ChessBase"]
[SourceQuality "1"]
[TimeControl "5400+30"]

1. e4 {[%emt 0:00:07]} e6 {[%emt 0:00:26]} 2. d4 {[%emt 0:00:09]} d5 {[%emt 0:00:05]} 3. Nc3 {[%emt 0:00:06]} Nf6 {[%emt 0:00:19]} 4. e5 {[%emt 0:00:08]} Nfd7 {[%emt 0:00:05]} 5. f4 {[%emt 0:00:06]} c5 {[%emt 0:00:03]} 6. Nf3 {[%emt 0:00:09]} Nc6 {[%emt 0:00:05]} 7. Be3 {[%emt 0:00:08]} cxd4 {[%emt 0:02:36]} 8. Nxd4 {[%emt 0:00:08]} Bc5 {[%emt 0:00:08]} 9. Qd2 {[%emt 0:01:26]} O-O {[%emt 0:01:20]} 10. O-O-O {[%emt 0:00:16]} a6 {[%emt 0:00:24]} 11. Qf2 {[%emt 0:06:06]} Bxd4 {[%emt 0:00:07]} 12. Bxd4 {[%emt 0:00:09]} b5 {[%emt 0:00:05]} 13. Kb1 {[%emt 0:03:08]} b4 {[%emt 0:03:50]} 14. Na4 {[%emt 0:02:09]} Nxd4 {[%emt 0:01:09]} 15. Qxd4 {[%emt 0:00:08]} Qa5 {[%emt 0:01:15]} 16. b3 {[%emt 0:00:17]} Bb7 {[%emt 0:00:33]} 17. c3 {[%emt 0:07:04]} bxc3 {[%emt 0:02:06]} 18. Qxc3 {[%emt 0:00:28]} Qxc3 {[%emt 0:10:48]} 19. Nxc3 {[%emt 0:00:10]} g5 {[%emt 0:06:12]} 20. fxg5 {[%emt 0:06:46]} Nxe5 {[%emt 0:00:23]} 21. Be2 {[%emt 0:12:22]} Rac8 {[%emt 0:06:16]} 22. Na4 {[%emt 0:02:02]} Rfd8 {[%emt 0:01:03]} 23. Rhe1 {[%emt 0:05:35]} Nd7 {[%emt 0:12:05]} 24. b4 {[%emt 0:09:48]} Bc6 {[%emt 0:17:45]} 25. Nc3 {[%emt 0:02:31]} Rb8 {[%emt 0:33:52]} 26. a3 {[%emt 0:00:14]} a5 {[%emt 0:00:00]} 27. b5 {[%emt 0:01:11]} Nc5 {[%emt 0:00:00]} 28. Kc2 {[%emt 0:14:05]} Be8 {[%emt 0:00:00]} 29. Rd4 {[%emt 0:06:09]} Rdc8 {[%emt 0:00:00]} 30. Kb2 {[%emt 0:02:06]} Bc6 {[%emt 0:00:00]} 31. Bf1 {[%emt 0:02:11]} Re8 {[%emt 0:00:00]} 32. Rdd1 {[%emt 0:05:48]} Ba8 {[%emt 0:00:00]} 33. Rd2 {[%emt 0:07:22]} Rbd8 {[%emt 0:00:00]} 34. Red1 {[%emt 0:00:22]} Rd6 {[%emt 0:00:00]} 35. Bc4 {[%emt 0:05:34]} Red8 {[%emt 0:00:00]} 36. Rd4 {[%emt 0:01:22]} Kf8 {[%emt 0:00:00]} 37. Ba2 {[%emt 0:00:26]} e5 {[%emt 0:00:00]} 38. Rh4 {[%emt 0:00:42]} d4 {[%emt 0:00:00]} 39. Ne2 {[%emt 0:00:28]} Be4 {[%emt 0:00:00]} 40. Bc4 {[%emt 0:00:31]} Bg6 {[%emt 0:00:00]} 41. Nc1 {[%emt 0:00:31]} e4 {[%emt 0:00:00]} 42. Rh3 {[%emt 0:00:20]} e3 {[%emt 0:00:00]} 43. g4 {[%emt 0:00:38]} Re8 {[%emt 0:00:00]} 44. Ne2 {[%emt 0:00:33]} d3 {[%emt 0:00:00]} 45. Nc3 {[%emt 0:00:30]} e2 {[%emt 0:00:18]} 46. Re1 {[%emt 0:00:26]} Rd4 {[%emt 0:00:35]} 47. Ba2 {[%emt 0:00:33]} d2 {[%emt 0:00:17]} 48. Rxe2 {[%emt 0:00:31]} Rxe2 {[%emt 0:00:09]} 49. Nxe2 {[%emt 0:00:04]} d1=Q {[%emt 0:00:09]} 50. Nxd4 {[%emt 0:00:05]} Na4# {[%emt 0:00:06]} 0-1

[Event "48th Ciutat de Badalona Open 2024"]
[Site "Badalona"]
[Date "2024.08.10"]
[Round "9.8"]
[White "Vivaan Vishal Shah"]
[Black "Marabajan Navas, Saul"]
[Result "1-0"]
[ECO "B23"]
[WhiteElo "2186"]
[BlackElo "2077"]
[Annotator "RC"]
[PlyCount "157"]
[EventDate "2024.07.29"]
[EventType "swiss"]
[EventCountry "ESP"]
[SourceTitle "playchess.com"]
[Source "ChessBase"]
[SourceQuality "1"]
[TimeControl "5400+30"]

1. e4 {[%emt 0:00:08]} c5 {[%emt 0:01:21]} 2. Nc3 {[%emt 0:00:40]} Nc6 {[%emt 0:00:03]} 3. Bb5 {[%emt 0:00:06]} Nd4 {[%emt 0:00:04]} 4. Nf3 {[%emt 0:00:08]} a6 {[%emt 0:00:03]} 5. Bd3 {[%emt 0:00:07]} g6 {[%emt 0:00:09]} 6. Nxd4 {[%emt 0:00:31]} cxd4 {[%emt 0:00:05]} 7. Ne2 {[%emt 0:00:12]} d5 {[%emt 0:00:05]} 8. e5 {[%emt 0:02:46]} Bg7 {[%emt 0:00:03]} 9. f4 {[%emt 0:00:34]} f6 {[%emt 0:00:05]} 10. exf6 {[%emt 0:00:16]} Nxf6 {[%emt 0:00:06]} 11. O-O {[%emt 0:02:08]} O-O {[%emt 0:00:17]} 12. Ng3 {[%emt 0:09:08]} e6 {[%emt 0:01:51]} 13. b3 {[%emt 0:00:48]} Ne8 {[%emt 0:04:12]} 14. Bb2 {[%emt 0:01:54]} Nd6 {[%emt 0:01:08]} 15. Qe2 {[%emt 0:06:24]} Bd7 {[%emt 0:14:14]} 16. Rae1 {[%emt 0:01:24]} Rf7 {[%emt 0:01:53]} 17. Rf3 {[%emt 0:03:17]} Qb6 {[%emt 0:03:55]} 18. Qf2 {[%emt 0:00:55]} Re8 {[%emt 0:01:58]} 19. Ne2 {[%emt 0:11:03]} Ne4 {[%emt 0:04:15]} 20. Bxd4 {[%emt 0:00:35]} Qa5 {[%emt 0:02:17]} 21. Bxe4 {[%emt 0:01:03]} dxe4 {[%emt 0:00:12]} 22. Re3 {[%emt 0:08:03]} Qxd2 {[%emt 0:05:56]} 23. Bxg7 {[%emt 0:00:37]} Rxg7 {[%emt 0:00:35]} 24. Ng3 {[%emt 0:03:33]} Qxf2+ {[%emt 0:04:03]} 25. Kxf2 {[%emt 0:00:03]} Rf7 {[%emt 0:01:29]} 26. Rxe4 {[%emt 0:01:21]} Bc6 {[%emt 0:05:50]} 27. Rxe6 {[%emt 0:01:39]} Rxf4+ {[%emt 0:00:07]} 28. Kg1 {[%emt 0:00:07]} Rd8 {[%emt 0:04:29]} 29. Nf1 {[%emt 0:00:58]} Rfd4 {[%emt 0:06:45]} 30. h3 {[%emt 0:01:10]} Rc8 {[%emt 0:01:15]} 31. R1e2 {[%emt 0:02:32]} Bb5 {[%emt 0:01:27]} 32. c4 {[%emt 0:00:17]} Bd7 {[%emt 0:00:25]} 33. Re7 {[%emt 0:00:31]} b5 {[%emt 0:00:56]} 34. Rd2 {[%emt 0:00:11]} Rxd2 {[%emt 0:00:54]} 35. Nxd2 {[%emt 0:00:22]} bxc4 {[%emt 0:01:27]} 36. Nxc4 {[%emt 0:01:21]} Bb5 {[%emt 0:00:21]} 37. Ne3 {[%emt 0:01:22]} Rc1+ {[%emt 0:06:49]} 38. Kh2 {[%emt 0:00:59]} Ra1 {[%emt 0:00:26]} 39. a4 {[%emt 0:00:20]} Bd3 {[%emt 0:01:24]} 40. Rd7 {[%emt 0:01:16]} Be4 {[%emt 0:01:41]} 41. Ng4 {[%emt 0:00:37]} Bc2 {[%emt 0:01:42]} 42. Nf6+ {[%emt 0:00:26]} Kf8 {[%emt 0:00:06]} 43. Nxh7+ {[%emt 0:00:08]} Ke8 {[%emt 0:00:15]} 44. Nf6+ {[%emt 0:00:06]} Kf8 {[%emt 0:00:02]} 45. Rb7 {[%emt 0:00:09]} Ra3 {[%emt 0:01:30]} 46. Nd7+ {[%emt 0:00:19]} Ke7 {[%emt 0:00:35]} 47. Nc5+ {[%emt 0:00:15]} Kf6 {[%emt 0:00:06]} 48. Rb6+ {[%emt 0:00:17]} Kf5 {[%emt 0:00:28]} 49. b4 {[%emt 0:00:25]} a5 {[%emt 0:00:38]} 50. bxa5 {[%emt 0:00:29]} Bxa4 {[%emt 0:00:36]} 51. a6 {[%emt 0:00:34]} Bd1 {[%emt 0:02:02]} 52. Rb7 {[%emt 0:01:25]} g5 {[%emt 0:03:02]} 53. a7 {[%emt 0:01:59]} g4 {[%emt 0:01:09]} 54. hxg4+ {[%emt 0:00:12]} Bxg4 {[%emt 0:01:20]} 55. Nd7 {[%emt 0:00:11]} Ra2 {[%emt 0:02:01]} 56. Nb6 {[%emt 0:00:14]} Bf3 {[%emt 0:00:16]} 57. Rf7+ {[%emt 0:00:05]} Kg4 {[%emt 0:00:08]} 58. Rxf3 {[%emt 0:00:06]} Rxa7 {[%emt 0:00:02]} 59. Nd5 {[%emt 0:00:16]} Ra2 {[%emt 0:01:05]} 60. Ne3+ {[%emt 0:00:10]} Kh4 {[%emt 0:00:47]} 61. Rf4+ {[%emt 0:00:09]} Kg5 {[%emt 0:00:40]} 62. Rg4+ {[%emt 0:00:15]} Kh5 {[%emt 0:00:05]} 63. Re4 {[%emt 0:00:05]} Kg5 {[%emt 0:00:37]} 64. Kg3 {[%emt 0:00:08]} Ra5 {[%emt 0:00:25]} 65. Kf3 {[%emt 0:00:06]} Rb5 {[%emt 0:01:18]} 66. g4 {[%emt 0:00:10]} Ra5 {[%emt 0:01:27]} 67. Nc4 {[%emt 0:00:09]} Ra1 {[%emt 0:00:34]} 68. Re5+ {[%emt 0:00:07]} Kg6 {[%emt 0:00:30]} 69. Ne3 {[%emt 0:00:12]} Ra4 {[%emt 0:00:32]} 70. Nd5 {[%emt 0:00:15]} Ra1 {[%emt 0:00:33]} 71. Nf4+ {[%emt 0:00:08]} Kf6 {[%emt 0:00:12]} 72. Rf5+ {[%emt 0:00:09]} Kg7 {[%emt 0:00:06]} 73. g5 {[%emt 0:00:13]} Rf1+ {[%emt 0:01:25]} 74. Kg2 {[%emt 0:00:12]} Ra1 {[%emt 0:00:13]} 75. Rf6 {[%emt 0:00:10]} Ra3 {[%emt 0:00:54]} 76. Ne6+ {[%emt 0:00:18]} Kh7 {[%emt 0:00:08]} 77. g6+ {[%emt 0:00:06]} Kh6 {[%emt 0:00:34]} 78. g7+ {[%emt 0:00:05]} Kh5 {[%emt 0:00:05]} 79. Nf4+ {[%emt 0:00:16]} 1-0

[Event "48th Ciutat de Badalona Open 2024"]
[Site "Badalona"]
[Date "2024.08.10"]
[Round "9.9"]
[White "Comas Molne, Pau"]
[Black "Infiesta Aguila, Agusti"]
[Result "1/2-1/2"]
[ECO "E09"]
[WhiteElo "1860"]
[BlackElo "1836"]
[Annotator "NA RC"]
[PlyCount "84"]
[EventDate "2024.07.29"]
[EventType "swiss"]
[EventCountry "ESP"]
[SourceTitle "playchess.com"]
[Source "ChessBase"]
[SourceQuality "1"]
[TimeControl "5400+30"]

1. d4 {[%emt 0:07:20]} d5 {[%emt 0:00:17]} 2. Nf3 {[%emt 0:00:14]} Nf6 {[%emt 0:00:08]} 3. c4 {[%emt 0:01:27]} e6 {[%emt 0:00:17]} 4. g3 {[%emt 0:00:05]} Be7 {[%emt 0:00:22]} 5. Bg2 {[%emt 0:00:05]} O-O {[%emt 0:00:23]} 6. O-O {[%emt 0:00:04]} c6 {[%emt 0:00:49]} 7. Nbd2 {[%emt 0:00:17]} Nbd7 {[%emt 0:00:44]} 8. Qc2 {[%emt 0:00:18]} b6 {[%emt 0:01:52]} 9. e4 {[%emt 0:00:27]} dxe4 {[%emt 0:00:39]} 10. Nxe4 {[%emt 0:00:06]} Nxe4 {[%emt 0:02:18]} 11. Qxe4 {[%emt 0:00:01]} Bb7 {[%emt 0:00:35]} 12. b3 {[%emt 0:00:13]} Nf6 {[%emt 0:01:47]} 13. Qe2 {[%emt 0:00:02]} c5 {[%emt 0:04:46]} 14. Bb2 {[%emt 0:00:33]} cxd4 {[%emt 0:02:48]} 15. Nxd4 {[%emt 0:01:47]} Bxg2 {[%emt 0:00:43]} 16. Kxg2 {[%emt 0:00:04]} Qc7 {[%emt 0:02:06]} 17. Rad1 {[%emt 0:01:29]} Rfd8 {[%emt 0:04:53]} 18. Qf3 {[%emt 0:02:12]} Rac8 {[%emt 0:04:17]} 19. Rd3 {[%emt 0:16:27]} e5 {[%emt 0:09:37]} 20. Nb5 {[%emt 0:04:19]} e4 {[%emt 0:01:17]} 21. Rxd8+ {[%emt 0:00:04]} Qxd8 {[%emt 0:00:53]} 22. Qd1 {[%emt 0:02:45]} a6 {[%emt 0:02:11]} 23. Bxf6 {[%emt 0:02:31]} axb5 {[%emt 0:10:55]} 24. Qxd8+ {[%emt 0:03:36]} Bxd8 {[%emt 0:02:30]} 25. Bxd8 {[%emt 0:00:04]} Rxd8 {[%emt 0:00:10]} 26. cxb5 {[%emt 0:00:24]} Rd2 {[%emt 0:02:59]} 27. Rc1 {[%emt 0:00:07]} f5 {[%emt 0:00:29]} 28. Kf1 {[%emt 0:03:07]} Rxa2 {[%emt 0:00:55]} 29. Rc6 {[%emt 0:00:02]} Rb2 {[%emt 0:00:52]} 30. Rxb6 {[%emt 0:00:07]} Rxb3 {[%emt 0:00:22]} 31. Rb7 {[%emt 0:03:25]} Rb2 {[%emt 0:03:56]} 32. b6 {[%emt 0:00:23]} h6 {[%emt 0:04:36]} 33. h4 {[%emt 0:00:41]} g5 {[%emt 0:05:51]} 34. Rb8+ {[%emt 0:00:23]} Kg7 {[%emt 0:00:23]} 35. Rb7+ {[%emt 0:02:25]} Kg8 {[%emt 0:00:34]} 36. hxg5 {[%emt 0:02:12]} hxg5 {[%emt 0:00:10]} 37. Ke1 {[%emt 0:01:00]} f4 {[%emt 0:03:57]} 38. gxf4 {[%emt 0:00:04]} gxf4 {[%emt 0:00:09]} 39. Rb8+ {[%emt 0:00:02]} Kg7 {[%emt 0:00:18]} 40. Re8 {[%emt 0:04:10]} Rb1+ {[%emt 0:04:25]} 41. Ke2 {[%emt 0:02:44]} Rb2+ {[%emt 0:00:09]} 42. Kd1 {[%emt 0:04:06]} Rb1+ {[%emt 0:03:22]} 1/2-1/2